fUSD/lending_fUSD_20260512
["ID","MTS","AMOUNT","RATE_DAILY","PERIOD"]
[422091262,1778567186000,-935.39,0.0001208,2]
[422091258,1778567186000,-150.0,0.00011727,2]
[422091259,1778567186000,-150.0,0.00011842,2]
[422091265,1778567300000,491.54492285,8.866e-05,2]
[422091266,1778567300000,166.66,8.866e-05,2]
[422091267,1778567300000,732.75052845,8.866e-05,2]
[422091268,1778567300000,350.1445487,8.866e-05,2]
[422091269,1778567300000,372.7509529,9.315e-05,2]
[422091271,1778567300000,1741.1,9.763e-05,2]
[422091272,1778567300000,1741.1,0.00010211,2]
[422091270,1778567300000,1368.3490471,9.315e-05,2]
[422091273,1778567301000,1741.1,0.0001066,2]
[422091274,1778567421000,180.81219458,0.0001,30]
[422091293,1778567431000,-250.0,0.00014,2]
[422091291,1778567431000,-1680.0,0.00013912,2]
[422091284,1778567431000,-252.79727368,0.00012648,2]
[422091286,1778567431000,-163.34,0.00012648,2]
[422091283,1778567431000,-178.96575374,0.00012648,2]
[422091280,1778567431000,-1741.1,0.00012005,2]
[422091290,1778567431000,-1741.1,0.00013798,2]
[422091281,1778567431000,-1741.1,0.00012453,2]
[422091279,1778567431000,-523.14,0.00012,2]
[422091278,1778567431000,-1741.1,0.00011556,2]
[422091276,1778567431000,-409.36696804,0.00011108,2]
[422091282,1778567431000,-1200.0,0.00012647,2]
[422091287,1778567431000,-1741.1,0.00012902,2]
[422091277,1778567431000,-1331.73303196,0.00011108,2]
[422091292,1778567431000,-250.0,0.00013913,2]
[422091288,1778567431000,-1741.1,0.0001335,2]
[422091305,1778567431000,-1741.1,0.00015143,2]
[422091303,1778567431000,-535.83966058,0.00015,2]
[422091299,1778567431000,-263.39072739,0.00015,2]
[422091297,1778567431000,-161.19191408,0.00014925,2]
[422091307,1778567431000,-2351.0,0.00015303,2]
[422091301,1778567431000,-2141.89356103,0.00015,2]
[422091309,1778567431000,-1741.1,0.00015592,2]
[422091294,1778567431000,-1741.1,0.00014247,2]
[422091296,1778567431000,-166.97679158,0.00014717,2]
[422091289,1778567431000,-163.13,0.000137,2]
[422091285,1778567431000,-150.32,0.00012648,2]
[422091295,1778567431000,-1741.1,0.00014695,2]
[422091310,1778567431000,-162.7,0.00015709,2]
[422091329,1778567432000,-500.0,0.00016249,2]
[422091335,1778567432000,-270.36409618,0.00016383,2]
[422091328,1778567432000,-151.0,0.00016249,2]
[422091334,1778567432000,-500.0,0.00016257,2]
[422091331,1778567432000,-500.0,0.00016249,2]
[422091333,1778567432000,-1865.36488657,0.00016249,2]
[422091330,1778567432000,-153.76414991,0.00016249,2]
[422091327,1778567432000,-500.0,0.00016249,2]
[422091332,1778567432000,-525.87575945,0.00016249,2]
[422091316,1778567432000,-1741.1,0.0001604,2]
[422091325,1778567432000,-151.0,0.00016249,2]
[422091326,1778567432000,-151.0,0.00016249,2]
[422091324,1778567432000,-151.0,0.00016249,2]
[422091322,1778567432000,-151.0,0.00016249,2]
[422091318,1778567432000,-166.66,0.00016102,2]
[422091320,1778567432000,-152.0,0.00016249,2]
[422091337,1778567432000,-166.66,0.00016434,2]
[422091312,1778567432000,-166.66,0.0001577,2]
[422091314,1778567432000,-550.0,0.0001604,2]
[422091323,1778567432000,-151.0,0.00016249,2]
[422091345,1778567432000,-1934.38338737,0.00016797,2]
[422091353,1778567432000,-166.66,0.0001743,2]
[422091338,1778567432000,-343.0,0.00016438,2]
[422091356,1778567432000,-5305.79,0.00017584,2]
[422091355,1778567432000,-155.4,0.00017584,2]
[422091357,1778567432000,-2840.0,0.00017584,2]
[422091359,1778567432000,-3916.92109672,0.00017588,2]
[422091354,1778567432000,-2500.0,0.00017489,2]
[422091352,1778567432000,-1741.1,0.00017385,2]
[422091358,1778567432000,-2535.16506525,0.00017588,2]
[422091347,1778567432000,-1741.1,0.00016937,2]
[422091350,1778567432000,-799.28,0.00017202,2]
[422091351,1778567432000,-2005.9555727,0.00017345,2]
[422091342,1778567432000,-175.42,0.00016712,2]
[422091340,1778567432000,-2981.38,0.00016615,2]
[422091343,1778567432000,-166.66,0.00016766,2]
[422091344,1778567432000,-799.28,0.00016793,2]
[422091341,1778567432000,-211.11,0.00016708,2]
[422091339,1778567432000,-1741.1,0.00016488,2]
[422091348,1778567432000,-166.66,0.00017098,2]
[422091336,1778567432000,-528.91590382,0.00016383,2]
[422091346,1778567432000,-3292.0,0.00016833,2]
[422091349,1778567432000,-799.0,0.00017163,2]
[422091360,1778567432000,-586.1919,0.00017588,2]
[422091361,1778567433000,379.0,0.00023088,120]
[422091362,1778567435000,379.0,0.00024243,120]
[422091363,1778567436000,379.0,0.00025455,120]
[422091364,1778567437000,379.0,0.00026728,120]
[422091365,1778567437000,-10287.29534557,0.00017588,2]
[422091399,1778567438000,-859.0,0.0002,2]
[422091380,1778567438000,-166.26,0.00018132,2]
[422091379,1778567438000,-5226.16,0.00018109,2]
[422091377,1778567438000,-200.0,0.0001808,2]
[422091383,1778567438000,-343.0,0.0001841,2]
[422091376,1778567438000,-799.28,0.00018022,2]
[422091374,1778567438000,-16384.31,0.00018018,2]
[422091378,1778567438000,-571.59,0.00018085,2]
[422091375,1778567438000,-2000.0,0.00018021,2]
[422091373,1778567438000,-2320.31,0.00017989,2]
[422091371,1778567438000,-701.78071337,0.00017893,2]
[422091372,1778567438000,-166.97679158,0.00017921,2]
[422091369,1778567438000,-4062.07,0.00017631,2]
[422091368,1778567438000,-799.28,0.00017612,2]
[422091366,1778567438000,-264.14659246,0.00017588,2]
[422091367,1778567438000,-1000.0,0.00017598,2]
[422091382,1778567438000,-155.73,0.00018342,2]
[422091384,1778567438000,-739.0,0.00018516,2]
[422091370,1778567438000,-183.6,0.00017792,2]
[422091386,1778567438000,-239.78,0.00018954,2]
[422091381,1778567438000,-150.0,0.00018225,2]
[422091403,1778567438000,-3492.503227,0.0002,30]
[422091402,1778567438000,-425.0,0.0002,2]
[422091401,1778567438000,-151.0,0.0002,2]
[422091400,1778567438000,-154.0,0.0002,2]
[422091398,1778567438000,-413.0,0.0002,2]
[422091394,1778567438000,-241.0,0.0002,2]
[422091393,1778567438000,-155.4,0.00019782,2]
[422091395,1778567438000,-157.0,0.0002,2]
[422091390,1778567438000,-23601.85,0.00019637,2]
[422091392,1778567438000,-595.38479004,0.0001966,2]
[422091389,1778567438000,-2195.1,0.00019526,2]
[422091388,1778567438000,-250.07,0.00019507,2]
[422091387,1778567438000,-166.26,0.0001913,2]
[422091385,1778567438000,-9999.99,0.00018533,2]
[422091396,1778567438000,-154.0,0.0002,2]
[422091397,1778567438000,-183.0,0.0002,2]
[422091391,1778567438000,-500.0,0.00019637,2]
[422091408,1778567440000,-447.65399541,0.0002,30]
[422091410,1778567441000,-2283.4283494,0.0002,30]
[422091409,1778567441000,-263.50783151,0.00015,2]
[422091502,1778567443000,-166.26,0.00020128,2]
[422091501,1778567443000,-2525.44824356,0.0002,30]
[422091500,1778567443000,-7325.15618463,0.0002,30]
[422091504,1778567443000,-2000.0,0.00020273,2]
[422091509,1778567443000,-533.0,0.00020444,2]
[422091503,1778567443000,-500.0,0.00020137,2]
[422091506,1778567443000,-230.37770216,0.000204,2]
[422091508,1778567443000,-8228.09521029,0.00020444,2]
[422091507,1778567443000,-1852.42,0.00020444,2]
[422091505,1778567443000,-343.0,0.00020381,2]
[422091784,1778567445000,-292.939989,0.00020444,2]
[422091786,1778567445000,-7881.10830766,0.00020444,2]
[422091848,1778567446000,-5745.34472017,0.00020444,2]
[422091801,1778567446000,-1259.6234,0.00020444,2]
[422091793,1778567446000,-8124.14281498,0.00020444,2]
[422093191,1778567659000,318.29,0.00024953,120]
[422093192,1778567735000,227.0,0.00020839,120]
[422093193,1778567736000,227.0,0.00021881,120]
[422093194,1778567738000,227.0,0.00022975,120]
[422093196,1778567739000,19994.10408248,4e-05,2]
[422093195,1778567739000,227.0,0.00024124,120]
[422093197,1778567740000,227.0,0.0002533,120]
[422093198,1778567742000,227.0,0.00026597,120]
[422093199,1778568032000,183.0,0.00020914,120]
[422093200,1778568034000,183.0,0.0002196,120]
[422093201,1778568036000,183.0,0.00023058,120]
[422093202,1778568038000,183.0,0.00024211,120]
[422093203,1778568039000,183.0,0.00025421,120]
[422093204,1778568122000,176.98,9.179e-05,2]
[422093206,1778568341000,-4018.39029227,0.00015037,2]
[422093205,1778568341000,-162.7,0.0001431,2]
[422093207,1778568347000,-150.0,0.00015037,2]
[422093209,1778568382000,-250.0,0.00015137,2]
[422093210,1778568382000,-150.0,0.00015186,2]
[422093211,1778568382000,-87.3,0.00015337,2]
[422093208,1778568382000,-12.7,0.00015037,2]
[422093217,1778568393000,-152.0,0.00015963,2]
[422093216,1778568393000,-250.0,0.0001577,2]
[422093212,1778568393000,-62.7,0.00015337,2]
[422093215,1778568393000,-250.0,0.00015741,2]
[422093214,1778568393000,-150.0,0.00015637,2]
[422093213,1778568393000,-150.0,0.00015487,2]
[422093219,1778568404000,-166.66,0.0001641,2]
[422093220,1778568404000,-40.51509351,0.00016438,2]
[422093218,1778568404000,-216.78490649,0.00016059,2]
[422093221,1778568411000,-216.78490649,0.00016438,2]
[422093223,1778568435000,-1500.0,0.00016541,2]
[422093222,1778568435000,-2500.0,0.00016541,2]
[422093225,1778568631000,-250.0,0.00014,2]
[422093226,1778568631000,-300.0,0.00016,2]
[422093255,1778568632000,-166.66,0.00017792,2]
[422093250,1778568632000,-166.66,0.00017447,2]
[422093253,1778568632000,-150.0,0.00017727,2]
[422093254,1778568632000,-4907.47,0.00017728,2]
[422093252,1778568632000,-500.0,0.00017484,2]
[422093256,1778568632000,-164.97,0.00017976,2]
[422093257,1778568632000,-176.98,0.00017998,2]
[422093259,1778568632000,-2500.0,0.00018085,2]
[422093267,1778568632000,-500.0,0.00019205,2]
[422093266,1778568632000,-2000.0,0.00018971,2]
[422093260,1778568632000,-166.66,0.00018138,2]
[422093263,1778568632000,-1000.0,0.00018311,2]
[422093258,1778568632000,-350.0,0.00018,2]
[422093265,1778568632000,-272.11,0.00018499,2]
[422093261,1778568632000,-366.0,0.00018164,2]
[422093262,1778568632000,-7418.11,0.00018168,2]
[422093248,1778568632000,-500.0,0.00017382,2]
[422093268,1778568632000,-1002.01916522,0.00019325,2]
[422093246,1778568632000,-150.0,0.0001724,2]
[422093232,1778568632000,-2500.0,0.00016541,2]
[422093245,1778568632000,-166.66,0.00017101,2]
[422093227,1778568632000,-216.78490648,0.00016441,2]
[422093231,1778568632000,-1000.0,0.00016541,2]
[422093229,1778568632000,-1200.0,0.0001654,2]
[422093230,1778568632000,-300.0,0.0001654,2]
[422093228,1778568632000,-150.39922294,0.00016441,2]
[422093233,1778568632000,-2500.0,0.00016541,2]
[422093264,1778568632000,-235.9,0.0001841,2]
[422093234,1778568632000,-2500.0,0.00016541,2]
[422093247,1778568632000,-5063.38,0.00017274,2]
[422093235,1778568632000,-166.66,0.00016756,2]
[422093236,1778568632000,-7139.06450245,0.00016858,2]
[422093240,1778568632000,-2613.08,0.0001688,2]
[422093238,1778568632000,-150.0,0.0001686,2]
[422093239,1778568632000,-2000.0,0.00016863,2]
[422093241,1778568632000,-150.0,0.00016934,2]
[422093242,1778568632000,-1852.42,0.00016957,2]
[422093243,1778568632000,-8817.74623687,0.00017018,2]
[422093244,1778568632000,-7293.37376313,0.00017018,2]
[422093237,1778568632000,-8261.07549755,0.00016858,2]
[422093269,1778568632000,-12470.58375689,0.00019326,2]
[422093276,1778568632000,-500.0,0.00019326,2]
[422093271,1778568632000,-500.0,0.00019326,2]
[422093295,1778568632000,-500.0,0.00019326,2]
[422093298,1778568632000,-313.20785101,0.00019326,2]
[422093302,1778568632000,-500.0,0.00019326,2]
[422093306,1778568632000,-500.0,0.00019326,2]
[422093270,1778568632000,-500.0,0.00019326,2]
[422093301,1778568632000,-500.0,0.00019326,2]
[422093304,1778568632000,-500.0,0.00019326,2]
[422093299,1778568632000,-186.79214899,0.00019326,2]
[422093293,1778568632000,-500.0,0.00019326,2]
[422093303,1778568632000,-500.0,0.00019326,2]
[422093305,1778568632000,-500.0,0.00019326,2]
[422093296,1778568632000,-500.0,0.00019326,2]
[422093307,1778568632000,-500.0,0.00019326,2]
[422093308,1778568632000,-184.190288,0.00019326,2]
[422093309,1778568632000,-500.0,0.00019326,2]
[422093310,1778568632000,-500.0,0.00019326,2]
[422093312,1778568632000,-12411.58003771,0.00019327,2]
[422093311,1778568632000,-308.4375253,0.00019327,2]
[422093300,1778568632000,-500.0,0.00019326,2]
[422093289,1778568632000,-500.0,0.00019326,2]
[422093297,1778568632000,-291.39846408,0.00019326,2]
[422093291,1778568632000,-500.0,0.00019326,2]
[422093273,1778568632000,-500.0,0.00019326,2]
[422093272,1778568632000,-467.82459337,0.00019326,2]
[422093287,1778568632000,-500.0,0.00019326,2]
[422093280,1778568632000,-500.0,0.00019326,2]
[422093275,1778568632000,-500.0,0.00019326,2]
[422093277,1778568632000,-443.14529998,0.00019326,2]
[422093278,1778568632000,-500.0,0.00019326,2]
[422093279,1778568632000,-500.0,0.00019326,2]
[422093281,1778568632000,-200.0,0.00019326,2]
[422093274,1778568632000,-377.182643,0.00019326,2]
[422093285,1778568632000,-500.0,0.00019326,2]
[422093294,1778568632000,-500.0,0.00019326,2]
[422093290,1778568632000,-500.0,0.00019326,2]
[422093283,1778568632000,-500.0,0.00019326,2]
[422093292,1778568632000,-500.0,0.00019326,2]
[422093284,1778568632000,-500.0,0.00019326,2]
[422093286,1778568632000,-500.0,0.00019326,2]
[422093288,1778568632000,-500.0,0.00019326,2]
[422093282,1778568632000,-500.0,0.00019326,2]
[422093314,1778568638000,-3849.56172162,0.00019227,2]
[422093316,1778568638000,-375.0407008,0.00019327,2]
[422093315,1778568638000,-30392.65612839,0.00019327,2]
[422093317,1778568638000,-4390.06789124,0.00019327,2]
[422093319,1778568638000,-849.0,0.00019327,2]
[422093320,1778568638000,-673.6164918,0.00019327,2]
[422093321,1778568638000,-9832.67141427,0.00019327,2]
[422093322,1778568638000,-314.51668,0.00019327,2]
[422093318,1778568638000,-251.71387294,0.00019327,2]
[422093327,1778568640000,-1497.39788495,0.00019327,2]
[422093326,1778568640000,-500.04183587,0.00019327,2]
[422093325,1778568640000,-775.6,0.00019327,2]
[422093324,1778568640000,-1853.03214022,0.00019327,2]
[422093335,1778568643000,-3132.89956574,0.00019327,2]
[422093334,1778568643000,-188.78052081,0.00019327,2]
[422093336,1778568643000,-454.68174005,0.00019327,2]
[422093337,1778568643000,-681.54627534,0.00019327,2]
[422093338,1778568643000,-762.68417433,0.00019327,2]
[422093339,1778568643000,-1051.45239246,0.00019327,2]
[422093340,1778568643000,-4399.84067227,0.00019327,2]
[422093342,1778568646000,-5514.98230269,0.00019327,2]
[422093341,1778568646000,-1163.41902835,0.00019327,2]
[422093367,1778569132000,-216.2,0.00016438,2]
[422093376,1778569304000,-248.78834608,0.00018254,2]
[422093377,1778569304000,-1734.16860188,0.00018255,2]
[422093374,1778569304000,-1931.74529404,0.00018082,2]
[422093375,1778569304000,-51.21165392,0.00018254,2]
[422093372,1778569304000,-1414.702242,0.00017982,2]
[422093373,1778569304000,-568.25470596,0.00018082,2]
[422093371,1778569304000,-1982.95694796,0.0001721,2]
[422093378,1778569305000,-1982.95694796,0.00018255,2]
[422093380,1778569305000,-1982.95694796,0.00018255,2]
[422093379,1778569305000,-1982.95694796,0.00018255,2]
[422093382,1778569306000,-1982.95694796,0.00018255,2]
[422093381,1778569306000,-1982.95694796,0.00018255,2]
[422093385,1778569307000,-1982.95694796,0.00018255,2]
[422093384,1778569307000,-1982.95694796,0.00018255,2]
[422093383,1778569307000,-1982.95694796,0.00018255,2]
[422093387,1778569308000,-1982.95694796,0.00018255,2]
[422093386,1778569308000,-1982.95694796,0.00018255,2]
[422093388,1778569351000,8662.14576338,8e-05,2]
[422093389,1778569409000,547.11145433,0.0001,2]
[422093390,1778569442000,-519.62,0.00013699,2]
[422093395,1778569796000,-150.0,0.0001465,2]
[422093396,1778569796000,-50.0,0.000147,5]
[422093394,1778569796000,-200.0,0.000146,5]
[422093399,1778569797000,-50.0,0.000147,2]
[422093397,1778569797000,-200.0,0.000147,5]
[422093400,1778569797000,-200.0,0.000147,2]
[422093401,1778569797000,-200.0,0.000147,2]
[422093398,1778569797000,-150.0,0.000147,5]
[422093407,1778569799000,-100.0,0.00013488,2]
[422093405,1778569799000,258.63135137,0.0001,2]
[422093406,1778569799000,-100.0,0.00013488,2]
[422093404,1778569799000,57719.39497791,0.000107,2]
[422093403,1778569799000,-50.0,0.00013488,2]
[422093402,1778569799000,-150.0,0.00013488,2]
[422093410,1778569800000,-200.0,0.00013469,2]
[422093409,1778569800000,-150.0,0.00013488,2]
[422093408,1778569800000,-50.0,0.00013488,2]
[422093411,1778569801000,150.0,0.00010699,2]
[422093413,1778569801000,-200.0,0.00013469,2]
[422093412,1778569801000,-200.0,0.00013469,2]
[422093415,1778569801000,-200.0,0.00013469,2]
[422093416,1778569801000,-200.0,0.00013438,2]
[422093414,1778569801000,-200.0,0.00013469,2]
[422093422,1778569802000,-200.0,0.00013406,2]
[422093421,1778569802000,-200.0,0.00013421,2]
[422093420,1778569802000,-200.0,0.00013421,2]
[422093419,1778569802000,224.91,0.000107,2]
[422093417,1778569802000,-98.5,0.00013438,2]
[422093418,1778569802000,-101.5,0.00013469,2]
[422093424,1778569803000,-22.52,0.00013421,2]
[422093423,1778569803000,-177.48,0.00013406,2]
[422093426,1778569803000,-122.52,0.00013469,2]
[422093428,1778569803000,-200.0,0.00013469,2]
[422093427,1778569803000,-200.0,0.00013469,2]
[422093429,1778569803000,-200.0,0.00013469,2]
[422093425,1778569803000,-77.48,0.00013421,2]
[422093431,1778569804000,150.0,0.00010699,2]
[422093430,1778569804000,-200.0,0.00013469,2]
[422093432,1778569804000,-200.0,0.00013469,2]
[422093435,1778569804000,-200.0,0.00013469,2]
[422093434,1778569804000,-200.0,0.00013469,2]
[422093436,1778569804000,-200.0,0.0001339,2]
[422093433,1778569804000,-1537.61067678,0.00013469,2]
[422093868,1778569986000,300.0,0.00010699,2]
[422093871,1778570083000,-9293.01,0.0001339,2]
[422093869,1778570083000,-420.0,0.00011761,2]
[422093870,1778570083000,-287.0,0.00012928,2]
[422093873,1778570169000,-500.0015087,0.00011769,2]
[422093874,1778570169000,-250.0,0.00011769,2]
[422093876,1778570169000,-5375.22,0.0001339,2]
[422093875,1778570169000,-250.0,0.00012616,2]
[422093877,1778570169000,-3374.7884913,0.00013469,2]
[422093879,1778570169000,-150.0,0.0001353,2]
[422093872,1778570169000,-250.0,0.0001123,2]
[422093880,1778570169000,-150.0,0.00013573,2]
[422093882,1778570169000,-150.0,0.00013654,2]
[422093883,1778570169000,-150.0,0.00013659,2]
[422093881,1778570169000,-150.0,0.00013616,2]
[422093884,1778570169000,-150.0,0.00013702,2]
[422093885,1778570169000,-150.0,0.00013702,2]
[422093878,1778570169000,-4792.08083192,0.00013469,2]
[422093886,1778570169000,-150.0,0.00013745,2]
[422093910,1778570170000,-150.0,0.00014472,2]
[422093908,1778570170000,-150.0,0.00014387,2]
[422093909,1778570170000,-150.0,0.0001443,2]
[422093911,1778570170000,-150.0,0.00014487,2]
[422093912,1778570170000,-257.92916808,0.000145,5]
[422093914,1778570170000,-150.0,0.00014515,2]
[422093913,1778570170000,-142.07083192,0.000145,5]
[422093917,1778570170000,-400.0,0.000146,5]
[422093916,1778570170000,-150.0,0.00014558,2]
[422093918,1778570170000,-800.0,0.000146,5]
[422093919,1778570170000,-150.0,0.00014601,2]
[422093920,1778570170000,-150.0,0.00014644,2]
[422093921,1778570170000,-150.0,0.00014653,2]
[422093925,1778570170000,-900.0,0.000147,5]
[422093906,1778570170000,-150.0,0.00014344,2]
[422093915,1778570170000,-150.0,0.00014558,2]
[422093905,1778570170000,-150.0,0.0001432,2]
[422093895,1778570170000,-150.0,0.00014001,2]
[422093903,1778570170000,-150.0,0.00014258,2]
[422093923,1778570170000,-998.019,0.000147,2]
[422093887,1778570170000,-150.0,0.00013787,2]
[422093888,1778570170000,-150.0,0.00013821,2]
[422093893,1778570170000,-150.0,0.00013959,2]
[422093891,1778570170000,-150.0,0.00013916,2]
[422093892,1778570170000,-150.0,0.00013916,2]
[422093890,1778570170000,-150.0,0.00013873,2]
[422093889,1778570170000,-150.0,0.0001383,2]
[422093894,1778570170000,-150.0,0.00013987,2]
[422093896,1778570170000,-150.0,0.00014044,2]
[422093899,1778570170000,-150.0,0.0001413,2]
[422093897,1778570170000,-150.0,0.00014087,2]
[422093898,1778570170000,-150.0,0.0001413,2]
[422093900,1778570170000,-150.0,0.00014154,2]
[422093907,1778570170000,-150.0,0.00014344,2]
[422093901,1778570170000,-150.0,0.00014173,2]
[422093902,1778570170000,-150.0,0.00014216,2]
[422093904,1778570170000,-150.0,0.00014301,2]
[422093922,1778570170000,-150.0,0.00014687,2]
[422093924,1778570170000,-155.308,0.000147,2]
[422093927,1778570170000,-150.0,0.00014772,2]
[422093946,1778570170000,-500.0,0.00014999,2]
[422093951,1778570170000,-500.0,0.00014999,2]
[422093948,1778570170000,-500.0,0.00014999,2]
[422093954,1778570170000,-550.38637997,0.00014999,2]
[422093953,1778570170000,-500.0,0.00014999,2]
[422093955,1778570170000,-500.0,0.00014999,2]
[422093957,1778570170000,-540.49124823,0.00014999,2]
[422093956,1778570170000,-500.0,0.00014999,2]
[422093963,1778570170000,-385.41805285,0.00014999,2]
[422093958,1778570170000,-500.0,0.00014999,2]
[422093960,1778570170000,-500.0,0.00014999,2]
[422093961,1778570170000,-500.0,0.00014999,2]
[422093959,1778570170000,-500.0,0.00014999,2]
[422093962,1778570170000,-500.0,0.00014999,2]
[422093965,1778570170000,-1917.47302092,0.00015,2]
[422093964,1778570170000,-500.00000001,0.00014999,2]
[422093926,1778570170000,-1200.0,0.000147,5]
[422093950,1778570170000,-156.64197605,0.00014999,2]
[422093947,1778570170000,-500.0,0.00014999,2]
[422093952,1778570170000,-257.45995527,0.00014999,2]
[422093945,1778570170000,-500.0,0.00014999,2]
[422093928,1778570170000,-1300.0,0.000148,5]
[422093930,1778570170000,-150.0,0.0001482,2]
[422093929,1778570170000,-1700.0,0.000148,5]
[422093931,1778570170000,-500.0,0.00014899,2]
[422093949,1778570170000,-251.23114742,0.00014999,2]
[422093934,1778570170000,-2100.0,0.000149,5]
[422093933,1778570170000,-209.97427919,0.000149,2]
[422093936,1778570170000,-150.0,0.00014986,2]
[422093935,1778570170000,-154.3164136,0.00014925,2]
[422093932,1778570170000,-1800.0,0.000149,5]
[422093938,1778570170000,-500.0,0.00014999,2]
[422093939,1778570170000,-500.0,0.00014999,2]
[422093940,1778570170000,-500.0,0.00014999,2]
[422093942,1778570170000,-500.0,0.00014999,2]
[422093943,1778570170000,-500.0,0.00014999,2]
[422093941,1778570170000,-500.0,0.00014999,2]
[422093944,1778570170000,-500.0,0.00014999,2]
[422093937,1778570170000,-150.0,0.00014986,2]
[422093975,1778570171000,-2812.06616379,0.00015,2]
[422093973,1778570171000,-367.37990006,0.00015,2]
[422093974,1778570171000,-2070.3505125,0.00015,2]
[422093971,1778570171000,-2224.19331068,0.00015,2]
[422093968,1778570171000,-584.93412749,0.00015,2]
[422093970,1778570171000,-3199.99645343,0.00015,2]
[422093969,1778570171000,-437503.62401081,0.00015,2]
[422093967,1778570171000,-7549.35496991,0.00015,2]
[422093976,1778570171000,-2587.50787416,0.00015,2]
[422093972,1778570171000,-680.64094042,0.00015,2]
[422093977,1778570171000,-40508.8,0.00015,2]
[422093966,1778570171000,-73764.65141322,0.00015,2]
[422093980,1778570171000,-4680.00000002,0.00015,2]
[422093989,1778570171000,-1418.55030482,0.00015,2]
[422093988,1778570171000,-9594.79997999,0.00015,2]
[422093987,1778570171000,-5668.67614547,0.00015,2]
[422093986,1778570171000,-929.27452614,0.00015,2]
[422093985,1778570171000,-1125.37900549,0.00015,2]
[422093978,1778570171000,-7705.80141735,0.00015,2]
[422093983,1778570171000,-1400.18194092,0.00015,2]
[422093981,1778570171000,-691.82250178,0.00015,2]
[422093982,1778570171000,-722.8955016,0.00015,2]
[422093979,1778570171000,-10000.01,0.00015,2]
[422093984,1778570171000,-253.52,0.00015,2]
[422093990,1778570172000,-500.0,0.00014999,2]
[422093993,1778570172000,-8559.96244479,0.00015,2]
[422093992,1778570172000,-440.04755521,0.00014999,2]
[422093991,1778570172000,-500.0,0.00014999,2]
[422093994,1778570172000,-300.0,0.00013389,2]
[422093995,1778570172000,-420.0,0.00014677,2]
[422093997,1778570172000,-864.56095959,0.00014999,5]
[422093996,1778570172000,-8415.44904041,0.000149,2]
[422093998,1778570172000,-239.02206426,0.00014999,5]
[422093999,1778570172000,-500.0,0.00014999,2]
[422094000,1778570172000,-500.0,0.00014999,2]
[422094003,1778570172000,-500.0,0.00014999,2]
[422094004,1778570172000,-500.0,0.00014999,2]
[422094006,1778570172000,-308.68353839,0.00014999,2]
[422094005,1778570172000,-264.58721202,0.00014999,2]
[422094007,1778570172000,-676.20849593,0.00014999,2]
[422094008,1778570172000,-5511.5086894,0.00015,2]
[422094002,1778570172000,-500.0,0.00014999,2]
[422094001,1778570172000,-500.0,0.00014999,2]
[422094012,1778570173000,-500.0,0.00014999,2]
[422094009,1778570173000,-190.29785529,0.00014999,2]
[422094010,1778570173000,-9809.71214471,0.00015,2]
[422094011,1778570173000,-4715.14,0.0001338,2]
[422094013,1778570173000,-4784.87,0.00015,2]
[422094014,1778570173000,-500.0,0.00014999,2]
[422094019,1778570173000,-9200.01,0.00015,2]